[Event "4NCL Div 1 2024-25"]
[Site "England"]
[Date "2024.11.23"]
[Round "1.17"]
[White "Slaby, Jerzy"]
[Black "Rendle, Thomas E"]
[Result "0-1"]
[ECO "A09"]
[WhiteElo "2468"]
[BlackElo "2383"]
[Annotator "RC"]
[PlyCount "58"]
[EventDate "2024.11.23"]
[EventType "team-tourn"]
[EventCountry "ENG"]
[SourceTitle "playchess.com"]
[Source "ChessBase"]
[SourceQuality "1"]
[TimeControl "40/6000+30:3000+30"]

1. Nf3 {[%emt 0:10:11]} d5 {[%emt 0:10:20]} 2. g3 {[%emt 0:01:19]} g6 {[%emt 0:00:30]} 3. c4 {[%emt 0:02:16]} dxc4 {[%emt 0:03:03]} 4. Na3 {[%emt 0:02:02]} Bg7 {[%emt 0:16:12]} 5. Nxc4 {[%emt 0:00:42]} Nc6 {[%emt 0:00:21]} 6. Bg2 {[%emt 0:01:44]} e5 {[%emt 0:00:30]} 7. d3 {[%emt 0:02:05]} e4 {[%emt 0:09:34]} 8. dxe4 {[%emt 0:18:15]} Qxd1+ {[%emt 0:00:42]} 9. Kxd1 {[%emt 0:00:02]} Nf6 {[%emt 0:00:27]} 10. Nfd2 {[%emt 0:10:06]} Ng4 {[%emt 0:14:29]} 11. Ke1 {[%emt 0:01:42]} Nb4 {[%emt 0:02:21]} 12. Kf1 {[%emt 0:03:12]} Be6 {[%emt 0:03:02]} 13. h3 {[%emt 0:16:33]} O-O-O {[%emt 0:01:29]} 14. Na3 {[%emt 0:04:53]} Ne5 {[%emt 0:09:39]} 15. f4 {[%emt 0:00:28]} Nec6 {[%emt 0:00:55]} 16. Kf2 {[%emt 0:04:16]} Nd4 {[%emt 0:04:17]} 17. Nb3 {[%emt 0:03:54]} Ndc2 {[%emt 0:08:11]} 18. Nxc2 {[%emt 0:01:03]} Nxc2 {[%emt 0:00:02]} 19. Rb1 {[%emt 0:00:03]} a5 {[%emt 0:00:59]} 20. f5 {[%emt 0:03:10]} gxf5 {[%emt 0:01:27]} 21. Bg5 {[%emt 0:00:16]} a4 {[%emt 0:02:06]} 22. Na5 {[%emt 0:04:01]} Bd4+ {[%emt 0:02:22]} 23. e3 {[%emt 0:00:39]} Bb6 {[%emt 0:02:23]} 24. Bxd8 {[%emt 0:01:33]} Rxd8 {[%emt 0:00:41]} 25. exf5 {[%emt 0:02:52]} Rd2+ {[%emt 0:01:55]} 26. Kf3 {[%emt 0:00:08]} Bd5+ {[%emt 0:03:15]} 27. e4 {[%emt 0:00:02]} Bxa2 {[%emt 0:00:14]} 28. Rbd1 {[%emt 0:02:21]} Rf2+ {[%emt 0:00:47]} 29. Kg4 {[%emt 0:00:02]} Ne3+ {[%emt 0:00:09]} 0-1

[Event "4NCL Div 1 2024-25"]
[Site "England"]
[Date "2024.11.23"]
[Round "1.19"]
[White "Makkar, Rajat"]
[Black "Foisor, Mihaela-Veronica"]
[Result "1-0"]
[ECO "D24"]
[WhiteElo "2432"]
[BlackElo "2156"]
[Annotator "RC"]
[PlyCount "53"]
[EventDate "2024.11.23"]
[EventType "team-tourn"]
[EventCountry "ENG"]
[SourceTitle "playchess.com"]
[Source "ChessBase"]
[SourceQuality "1"]
[TimeControl "40/6000+30:3000+30"]

1. d4 {[%emt 0:10:12]} d5 {[%emt 0:10:06]} 2. c4 {[%emt 0:00:10]} e6 {[%emt 0:00:14]} 3. Nf3 {[%emt 0:00:22]} Nf6 {[%emt 0:00:07]} 4. Nc3 {[%emt 0:00:04]} dxc4 {[%emt 0:00:16]} 5. e4 {[%emt 0:00:15]} c5 {[%emt 0:01:37]} 6. d5 {[%emt 0:02:25]} exd5 {[%emt 0:00:07]} 7. e5 {[%emt 0:07:54]} Nfd7 {[%emt 0:01:29]} 8. Qxd5 {[%emt 0:06:32]} Nb6 {[%emt 0:01:05]} 9. Qxd8+ {[%emt 0:01:08]} Kxd8 {[%emt 0:00:02]} 10. Bg5+ {[%emt 0:00:39]} Be7 {[%emt 0:02:27]} 11. O-O-O+ {[%emt 0:01:19]} Bd7 {[%emt 0:08:59]} 12. Nb5 {[%emt 0:07:19]} Nc6 {[%emt 0:02:01]} 13. Nd6 {[%emt 0:03:24]} Kc7 {[%emt 0:01:00]} 14. Bxe7 {[%emt 0:13:12]} Nxe7 {[%emt 0:00:07]} 15. Nxf7 {[%emt 0:02:08]} Rhf8 {[%emt 0:00:18]} 16. Nd6 {[%emt 0:00:10]} Be6 {[%emt 0:06:51]} 17. Ng5 {[%emt 0:04:24]} Bg8 18. g3 {[%emt 0:08:13]} Rxf2 {[%emt 0:27:44]} 19. Nge4 {[%emt 0:00:32]} Rff8 {[%emt 0:00:10]} 20. Bh3 {[%emt 0:05:15]} Kc6 {[%emt 0:08:25]} 21. Nc3 {[%emt 0:07:19]} Rf2 {[%emt 0:10:43]} 22. Nde4 {[%emt 0:02:51]} Rf5 {[%emt 0:04:47]} 23. Rd6+ {[%emt 0:01:12]} Kc7 {[%emt 0:00:04]} 24. Nb5+ {[%emt 0:00:14]} Kc8 {[%emt 0:00:05]} 25. Rhd1 {[%emt 0:00:28]} Nbd5 {[%emt 0:01:28]} 26. Bxf5+ {[%emt 0:00:19]} Nxf5 {[%emt 0:23:18]} 27. R6xd5 {[%emt 0:00:11]} 1-0

[Event "4NCL Div 1 2024-25"]
[Site "England"]
[Date "2024.11.23"]
[Round "1.20"]
[White "Lentzos, Ioanis"]
[Black "Roberson, Peter T"]
[Result "0-1"]
[ECO "B13"]
[WhiteElo "2126"]
[BlackElo "2432"]
[Annotator "RC"]
[PlyCount "110"]
[EventDate "2024.11.23"]
[EventType "team-tourn"]
[EventCountry "ENG"]
[SourceTitle "playchess.com"]
[Source "ChessBase"]
[SourceQuality "1"]
[TimeControl "40/6000+30:3000+30"]

1. c4 {[%emt 0:10:03]} c5 {[%emt 0:10:09]} 2. Nf3 {[%emt 0:00:22]} Nc6 {[%emt 0:01:41]} 3. e3 {[%emt 0:00:34]} Nf6 {[%emt 0:03:58]} 4. Nc3 {[%emt 0:00:06]} a6 {[%emt 0:04:33]} 5. d4 {[%emt 0:07:22]} cxd4 {[%emt 0:00:19]} 6. exd4 {[%emt 0:00:07]} d5 {[%emt 0:00:05]} 7. cxd5 {[%emt 0:00:35]} Nxd5 {[%emt 0:00:07]} 8. Qb3 {[%emt 0:03:53]} e6 {[%emt 0:06:50]} 9. Bd3 {[%emt 0:07:10]} Be7 {[%emt 0:05:27]} 10. O-O {[%emt 0:03:28]} O-O {[%emt 0:00:12]} 11. Nxd5 {[%emt 0:11:35]} exd5 {[%emt 0:08:33]} 12. Be3 {[%emt 0:06:54]} Bf6 {[%emt 0:07:10]} 13. h3 {[%emt 0:04:18]} Qd6 {[%emt 0:09:15]} 14. Rac1 {[%emt 0:02:04]} Rb8 {[%emt 0:04:33]} 15. Rc5 {[%emt 0:16:25]} Be6 {[%emt 0:06:19]} 16. Rfc1 {[%emt 0:03:16]} Qd7 {[%emt 0:08:49]} 17. a3 {[%emt 0:12:51]} h6 {[%emt 0:10:49]} 18. Bf4 {[%emt 0:11:09]} Nxd4 {[%emt 0:08:48]} 19. Nxd4 {[%emt 0:00:50]} Bxd4 {[%emt 0:00:02]} 20. Rc7 {[%emt 0:00:10]} Qd8 {[%emt 0:00:10]} 21. Bb1 {[%emt 0:02:34]} Qf6 {[%emt 0:02:31]} 22. Qd3 {[%emt 0:00:45]} g6 {[%emt 0:02:05]} 23. Bxh6 {[%emt 0:00:14]} Rfc8 {[%emt 0:05:37]} 24. Rxc8+ {[%emt 0:04:40]} Rxc8 {[%emt 0:00:07]} 25. Rxc8+ {[%emt 0:00:19]} Bxc8 {[%emt 0:00:02]} 26. Qd2 {[%emt 0:00:13]} Bxb2 {[%emt 0:02:46]} 27. Qxd5 {[%emt 0:00:30]} Bxa3 {[%emt 0:00:30]} 28. Bg5 {[%emt 0:00:23]} Qd6 {[%emt 0:00:57]} 29. Qe4 {[%emt 0:00:55]} Qe6 {[%emt 0:00:50]} 30. Qd3 {[%emt 0:00:45]} Be7 {[%emt 0:01:00]} 31. Be3 {[%emt 0:00:39]} Bd7 {[%emt 0:00:47]} 32. Ba2 {[%emt 0:00:11]} Qd6 {[%emt 0:00:33]} 33. Qe4 {[%emt 0:00:44]} Bc6 {[%emt 0:00:12]} 34. Qg4 {[%emt 0:00:03]} Kg7 {[%emt 0:01:00]} 35. h4 {[%emt 0:00:24]} Bd7 {[%emt 0:00:20]} 36. Bd4+ {[%emt 0:00:24]} Kg8 {[%emt 0:00:29]} 37. Qf3 {[%emt 0:00:12]} Be6 {[%emt 0:00:34]} 38. Bxe6 {[%emt 0:00:13]} Qxe6 {[%emt 0:00:41]} 39. Qxb7 {[%emt 0:00:09]} Bf8 {[%emt 0:00:30]} 40. Qa7 {[%emt 0:01:30]} Qe4 {[%emt 0:00:31]} 41. Qb6 {[%emt 0:51:02]} Qxh4 {[%emt 0:25:41]} 42. g3 {[%emt 0:00:00]} Qh5 {[%emt 0:01:22]} 43. Qf6 {[%emt 0:00:00]} a5 {[%emt 0:00:34]} 44. Kg2 {[%emt 0:00:00]} a4 {[%emt 0:25:02]} 45. f3 {[%emt 0:00:00]} Qh6 {[%emt 0:00:00]} 46. f4 {[%emt 0:00:00]} a3 {[%emt 0:00:00]} 47. g4 {[%emt 0:00:38]} a2 {[%emt 0:00:00]} 48. Be5 {[%emt 0:02:46]} g5 {[%emt 0:00:00]} 49. fxg5 {[%emt 0:00:32]} Qxf6 {[%emt 0:00:00]} 50. gxf6 {[%emt 0:00:08]} Kh7 {[%emt 0:00:00]} 51. Kf3 {[%emt 0:01:14]} Kg6 {[%emt 0:00:00]} 52. g5 {[%emt 0:00:38]} Ba3 {[%emt 0:00:00]} 53. Ke4 {[%emt 0:00:23]} Bc1 {[%emt 0:00:00]} 54. Kd3 {[%emt 0:00:31]} Bxg5 {[%emt 0:00:00]} 55. Kc2 {[%emt 0:00:07]} Bxf6 {[%emt 0:00:00]} 0-1

[Event "4NCL Div 1 2024-25"]
[Site "England"]
[Date "2024.11.23"]
[Round "1.26"]
[White "Hebden, Mark L"]
[Black "Macak, Stefan"]
[Result "1/2-1/2"]
[ECO "D54"]
[WhiteElo "2372"]
[BlackElo "2310"]
[Annotator "RC"]
[PlyCount "101"]
[EventDate "2024.11.23"]
[EventType "team-tourn"]
[EventCountry "ENG"]
[SourceTitle "playchess.com"]
[Source "ChessBase"]
[SourceQuality "1"]
[TimeControl "40/6000+30:3000+30"]

1. d4 {[%emt 0:10:14]} d5 {[%emt 0:10:10]} 2. c4 {[%emt 0:00:21]} e6 {[%emt 0:00:20]} 3. Nc3 {[%emt 0:00:20]} Nf6 {[%emt 0:00:13]} 4. Bg5 {[%emt 0:01:42]} Be7 {[%emt 0:00:26]} 5. e3 {[%emt 0:02:14]} O-O {[%emt 0:00:59]} 6. Rc1 {[%emt 0:01:10]} h6 {[%emt 0:02:24]} 7. Bh4 {[%emt 0:01:39]} c5 {[%emt 0:01:52]} 8. dxc5 {[%emt 0:11:07]} dxc4 {[%emt 0:02:08]} 9. Bxc4 {[%emt 0:07:53]} Qxd1+ {[%emt 0:02:19]} 10. Rxd1 {[%emt 0:03:13]} Nbd7 {[%emt 0:02:25]} 11. Nf3 {[%emt 0:05:18]} Nxc5 {[%emt 0:03:43]} 12. O-O {[%emt 0:06:31]} a6 {[%emt 0:06:26]} 13. Nd4 {[%emt 0:07:51]} Re8 {[%emt 0:29:29]} 14. b4 {[%emt 0:07:21]} Nce4 {[%emt 0:11:37]} 15. Nxe4 {[%emt 0:01:31]} Nxe4 {[%emt 0:00:08]} 16. Bxe7 {[%emt 0:00:32]} Rxe7 {[%emt 0:00:27]} 17. f3 {[%emt 0:07:20]} Nf6 {[%emt 0:02:57]} 18. e4 {[%emt 0:00:28]} e5 {[%emt 0:04:06]} 19. Nb3 {[%emt 0:02:38]} Be6 {[%emt 0:03:37]} 20. Bxe6 {[%emt 0:00:21]} Rxe6 {[%emt 0:00:38]} 21. Nc5 {[%emt 0:00:06]} Rb6 {[%emt 0:03:39]} 22. a3 {[%emt 0:00:08]} a5 {[%emt 0:12:59]} 23. Na4 {[%emt 0:00:39]} Rb5 {[%emt 0:02:14]} 24. Nc3 {[%emt 0:00:51]} Rb6 {[%emt 0:00:04]} 25. b5 {[%emt 0:00:35]} Rc8 {[%emt 0:00:56]} 26. Rd3 {[%emt 0:02:01]} Kf8 {[%emt 0:02:12]} 27. Rfd1 {[%emt 0:04:01]} Ke8 {[%emt 0:01:32]} 28. Kf2 {[%emt 0:00:47]} Re6 {[%emt 0:01:00]} 29. Na4 {[%emt 0:01:31]} Ke7 {[%emt 0:02:24]} 30. R1d2 {[%emt 0:00:36]} g5 {[%emt 0:00:44]} 31. h3 {[%emt 0:02:27]} h5 {[%emt 0:00:19]} 32. g4 {[%emt 0:01:16]} h4 {[%emt 0:01:07]} 33. Ke3 {[%emt 0:04:39]} Ke8 {[%emt 0:00:43]} 34. Rc3 {[%emt 0:01:03]} Rxc3+ {[%emt 0:00:37]} 35. Nxc3 {[%emt 0:00:02]} Re7 {[%emt 0:00:35]} 36. Nd5 {[%emt 0:04:34]} Nxd5+ {[%emt 0:00:01]} 37. exd5 {[%emt 0:00:22]} Rc7 {[%emt 0:00:41]} 38. Ke4 {[%emt 0:00:45]} Kd7 {[%emt 0:00:35]} 39. Kxe5 {[%emt 0:02:32]} Rc3 {[%emt 0:00:21]} 40. b6 {[%emt 0:04:27]} Rxa3 {[%emt 0:00:43]} 41. Rc2 {[%emt 0:50:34]} Re3+ {[%emt 0:50:38]} 42. Kf5 {[%emt 0:00:31]} Rxf3+ {[%emt 0:00:00]} 43. Kxg5 {[%emt 0:00:00]} Rxh3 {[%emt 0:00:00]} 44. Rc7+ {[%emt 0:00:00]} Kd6 {[%emt 0:00:00]} 45. Rxb7 {[%emt 0:00:00]} Kxd5 {[%emt 0:00:00]} 46. Ra7 {[%emt 0:00:00]} Rb3 {[%emt 0:00:00]} 47. Rxa5+ {[%emt 0:00:00]} Ke6 {[%emt 0:00:00]} 48. Ra6 {[%emt 0:00:00]} h3 {[%emt 0:00:00]} 49. b7+ {[%emt 0:00:00]} Ke7 {[%emt 0:00:00]} 50. Ra7 {[%emt 0:00:00]} Ke6 {[%emt 0:00:00]} 51. Ra6+ {[%emt 0:00:00]} 1/2-1/2

[Event "4NCL Div 1 2024-25"]
[Site "England"]
[Date "2024.11.23"]
[Round "1.27"]
[White "Badacsonyi, Stanley"]
[Black "Williams, Simon K"]
[Result "0-1"]
[ECO "A92"]
[WhiteElo "2298"]
[BlackElo "2442"]
[Annotator "RC"]
[PlyCount "84"]
[EventDate "2024.11.23"]
[EventType "team-tourn"]
[EventCountry "ENG"]
[SourceTitle "playchess.com"]
[Source "ChessBase"]
[SourceQuality "1"]
[TimeControl "40/6000+30:3000+30"]

1. d4 {[%emt 0:10:01]} e6 {[%emt 0:10:21]} 2. c4 {[%emt 0:00:19]} f5 {[%emt 0:00:36]} 3. g3 {[%emt 0:00:18]} Nf6 {[%emt 0:00:25]} 4. Bg2 {[%emt 0:00:05]} d5 {[%emt 0:01:21]} 5. Nf3 {[%emt 0:00:26]} Be7 {[%emt 0:01:36]} 6. O-O {[%emt 0:00:28]} Ne4 {[%emt 0:01:12]} 7. Qc2 {[%emt 0:01:34]} Nc6 {[%emt 0:00:13]} 8. b3 {[%emt 0:05:21]} h5 {[%emt 0:01:19]} 9. Ba3 {[%emt 0:05:30]} Bf6 {[%emt 1:27:57]} 10. Rd1 {[%emt 0:03:32]} h4 {[%emt 0:00:00]} 11. Nc3 {[%emt 0:02:33]} hxg3 {[%emt 0:00:00]} 12. hxg3 {[%emt 0:00:12]} Qd7 {[%emt 0:00:00]} 13. e3 {[%emt 0:07:56]} Qf7 {[%emt 0:00:00]} 14. Ne2 {[%emt 0:07:25]} g5 {[%emt 0:00:00]} 15. Bb2 {[%emt 0:02:40]} Qh5 {[%emt 0:00:00]} 16. Kf1 {[%emt 0:03:54]} Bd7 {[%emt 0:00:00]} 17. Ne5 {[%emt 0:04:43]} O-O-O {[%emt 0:00:00]} 18. Nxd7 {[%emt 0:01:56]} Rxd7 {[%emt 0:00:00]} 19. f3 {[%emt 0:03:22]} Nb4 {[%emt 0:00:00]} 20. Qb1 {[%emt 0:00:38]} f4 {[%emt 0:00:00]} 21. gxf4 {[%emt 0:17:08]} gxf4 {[%emt 0:00:00]} 22. Nxf4 {[%emt 0:00:05]} Ng3+ {[%emt 0:00:00]} 23. Ke1 {[%emt 0:00:05]} Qh2 {[%emt 0:00:00]} 24. Kd2 {[%emt 0:02:38]} Bg5 {[%emt 0:00:00]} 25. Kc3 {[%emt 0:01:46]} c5 {[%emt 0:00:00]} 26. Rd2 {[%emt 0:05:12]} e5 {[%emt 0:00:00]} 27. dxc5 {[%emt 0:00:37]} a5 {[%emt 0:00:00]} 28. Nxd5 {[%emt 0:01:51]} Nxd5+ {[%emt 0:00:00]} 29. cxd5 {[%emt 0:00:11]} Bxe3 {[%emt 0:00:00]} 30. Qd3 {[%emt 0:00:55]} Bxd2+ {[%emt 0:00:00]} 31. Qxd2 {[%emt 0:00:05]} Rg8 {[%emt 0:00:00]} 32. Kc4 {[%emt 0:04:22]} Nf5 {[%emt 0:00:49]} 33. Qxa5 {[%emt 0:01:16]} Rxg2 {[%emt 0:00:46]} 34. Qa8+ {[%emt 0:00:11]} Kc7 {[%emt 0:00:03]} 35. d6+ {[%emt 0:00:09]} Rxd6 {[%emt 0:02:33]} 36. Qa5+ {[%emt 0:02:03]} Kd7 {[%emt 0:00:30]} 37. cxd6 {[%emt 0:00:24]} Qf4+ {[%emt 0:00:53]} 38. Kc5 {[%emt 0:01:05]} Rc2+ {[%emt 0:00:22]} 39. Kb6 {[%emt 0:01:00]} Rc6+ {[%emt 0:00:32]} 40. Kxb7 {[%emt 0:00:18]} Nxd6+ {[%emt 0:00:06]} 41. Ka7 {[%emt 0:50:47]} Qe3+ {[%emt 0:50:10]} 42. Kb8 {[%emt 0:00:06]} Rc8# {[%emt 0:00:37]} 0-1

[Event "4NCL Div 1 2024-25"]
[Site "England"]
[Date "2024.11.23"]
[Round "1.28"]
[White "Pert, Richard G"]
[Black "Pang, Ethan"]
[Result "1-0"]
[ECO "A46"]
[WhiteElo "2399"]
[BlackElo "2303"]
[Annotator "RC"]
[PlyCount "81"]
[EventDate "2024.11.23"]
[EventType "team-tourn"]
[EventCountry "ENG"]
[SourceTitle "playchess.com"]
[Source "ChessBase"]
[SourceQuality "1"]
[TimeControl "40/6000+30:3000+30"]

1. d4 {[%emt 0:10:14]} Nf6 {[%emt 0:10:53]} 2. Nf3 {[%emt 0:00:07]} e6 {[%emt 0:00:50]} 3. Bf4 {[%emt 0:00:16]} c5 {[%emt 0:00:57]} 4. e3 {[%emt 0:00:47]} Nc6 {[%emt 0:02:18]} 5. Nc3 {[%emt 0:03:16]} Qa5 {[%emt 0:10:58]} 6. Nd2 {[%emt 0:13:56]} cxd4 {[%emt 0:07:03]} 7. Nc4 {[%emt 0:01:54]} Qd8 {[%emt 0:01:42]} 8. exd4 {[%emt 0:07:14]} Bb4 {[%emt 0:25:43]} 9. Nd6+ {[%emt 0:12:28]} Ke7 {[%emt 0:03:56]} 10. Ndb5 {[%emt 0:03:25]} Nd5 {[%emt 0:04:56]} 11. Bd2 {[%emt 0:02:02]} Nf6 {[%emt 0:09:13]} 12. d5 {[%emt 0:05:53]} exd5 {[%emt 0:05:49]} 13. a3 {[%emt 0:00:44]} Bxc3 {[%emt 0:03:07]} 14. Bxc3 {[%emt 0:00:45]} Re8 {[%emt 0:00:59]} 15. Be2 {[%emt 0:01:42]} a6 {[%emt 0:02:08]} 16. Bxf6+ {[%emt 0:06:04]} Kxf6 {[%emt 0:03:35]} 17. Nc3 {[%emt 0:01:57]} Ke7 {[%emt 0:04:01]} 18. Qxd5 {[%emt 0:03:11]} Kf8 {[%emt 0:02:53]} 19. O-O-O {[%emt 0:01:08]} Re5 {[%emt 0:00:59]} 20. Qd3 {[%emt 0:01:13]} Qg5+ {[%emt 0:00:37]} 21. Kb1 {[%emt 0:00:08]} Qg6 {[%emt 0:00:17]} 22. f4 {[%emt 0:05:39]} Qxd3 {[%emt 0:00:42]} 23. Bxd3 {[%emt 0:00:54]} Re8 {[%emt 0:00:57]} 24. Be4 {[%emt 0:10:07]} g6 {[%emt 0:01:42]} 25. Bf3 {[%emt 0:01:09]} Rb8 {[%emt 0:00:31]} 26. Nd5 {[%emt 0:00:53]} Rd8 {[%emt 0:01:00]} 27. Rhe1 {[%emt 0:01:22]} Kg7 {[%emt 0:02:09]} 28. Nb6 {[%emt 0:01:55]} d6 {[%emt 0:04:35]} 29. Nc4 {[%emt 0:02:24]} Be6 {[%emt 0:00:00]} 30. Nxd6 {[%emt 0:00:17]} Na5 {[%emt 0:00:00]} 31. b4 {[%emt 0:04:01]} Nc4 {[%emt 0:00:00]} 32. Rxe6 {[%emt 0:01:44]} Nxa3+ {[%emt 0:00:00]} 33. Kb2 {[%emt 0:00:04]} fxe6 {[%emt 0:00:00]} 34. Kxa3 {[%emt 0:00:05]} b6 {[%emt 0:00:00]} 35. c4 {[%emt 0:01:23]} Rf8 {[%emt 0:01:13]} 36. Rd4 {[%emt 0:01:25]} Rfd8 {[%emt 0:01:12]} 37. c5 {[%emt 0:01:23]} bxc5 {[%emt 0:00:37]} 38. bxc5 {[%emt 0:00:02]} Kf6 {[%emt 0:00:19]} 39. c6 {[%emt 0:01:32]} e5 {[%emt 0:00:38]} 40. fxe5+ {[%emt 0:01:15]} Kxe5 {[%emt 0:00:30]} 41. Rd5+ {[%emt 0:50:05]} 1-0

[Event "4NCL Div 1 2024-25"]
[Site "England"]
[Date "2024.11.23"]
[Round "1.29"]
[White "Yoon, Jacob D"]
[Black "Arkell, Keith C"]
[Result "1/2-1/2"]
[ECO "B17"]
[WhiteElo "2270"]
[BlackElo "2359"]
[Annotator "RC"]
[PlyCount "109"]
[EventDate "2024.11.23"]
[EventType "team-tourn"]
[EventCountry "ENG"]
[SourceTitle "playchess.com"]
[Source "ChessBase"]
[SourceQuality "1"]
[TimeControl "40/6000+30:3000+30"]

1. e4 {[%emt 0:11:14]} c6 {[%emt 0:10:04]} 2. d4 {[%emt 0:00:37]} d5 {[%emt 0:00:05]} 3. Nc3 {[%emt 0:00:03]} dxe4 {[%emt 0:00:24]} 4. Nxe4 {[%emt 0:00:08]} Nd7 {[%emt 0:00:04]} 5. Ng5 {[%emt 0:00:16]} Ngf6 {[%emt 0:00:09]} 6. Bd3 {[%emt 0:00:04]} Nb6 {[%emt 0:00:08]} 7. Qe2 {[%emt 0:00:08]} Bg4 {[%emt 0:02:13]} 8. N1f3 {[%emt 0:00:45]} Bxf3 {[%emt 0:00:54]} 9. Nxf3 {[%emt 0:00:08]} g6 {[%emt 0:02:17]} 10. Bg5 {[%emt 0:15:51]} Bg7 {[%emt 0:00:08]} 11. O-O-O {[%emt 0:00:08]} h6 {[%emt 0:03:38]} 12. Bd2 {[%emt 0:01:14]} e6 {[%emt 0:13:07]} 13. c3 {[%emt 0:11:37]} Qe7 {[%emt 0:03:08]} 14. Ne5 {[%emt 0:11:20]} O-O-O {[%emt 0:01:17]} 15. Qf3 {[%emt 0:00:45]} Nbd5 {[%emt 0:11:53]} 16. a3 {[%emt 0:13:56]} Qe8 {[%emt 0:09:01]} 17. Bc2 {[%emt 0:06:22]} Ne7 {[%emt 0:08:57]} 18. Rhe1 {[%emt 0:06:36]} Rf8 {[%emt 0:04:09]} 19. g4 {[%emt 0:07:26]} Nd7 {[%emt 0:04:11]} 20. Nd3 {[%emt 0:01:03]} Nb6 {[%emt 0:01:35]} 21. Bb3 {[%emt 0:01:50]} Kb8 {[%emt 0:01:42]} 22. Nc5 {[%emt 0:03:01]} Ka8 {[%emt 0:04:55]} 23. Qg3 {[%emt 0:02:33]} Nd7 {[%emt 0:05:19]} 24. Nd3 {[%emt 0:01:19]} Rc8 {[%emt 0:01:51]} 25. Bf4 {[%emt 0:05:00]} Qd8 {[%emt 0:02:32]} 26. Bd6 {[%emt 0:01:11]} Re8 {[%emt 0:01:12]} 27. Qf4 {[%emt 0:01:43]} Bf6 {[%emt 0:03:47]} 28. Kb1 {[%emt 0:00:53]} g5 {[%emt 0:00:15]} 29. Qf3 {[%emt 0:00:40]} Ng6 {[%emt 0:04:25]} 30. Bg3 {[%emt 0:01:06]} Rf8 {[%emt 0:05:30]} 31. Bc2 {[%emt 0:02:20]} Be7 {[%emt 0:00:43]} 32. Nc1 {[%emt 0:01:03]} Nh4 {[%emt 0:00:56]} 33. Qe2 {[%emt 0:01:45]} Qb6 {[%emt 0:00:39]} 34. Ka2 {[%emt 0:00:36]} Ng2 {[%emt 0:01:39]} 35. Rg1 {[%emt 0:00:03]} Nf4 {[%emt 0:00:04]} 36. Bxf4 {[%emt 0:00:04]} gxf4 {[%emt 0:00:03]} 37. Nd3 {[%emt 0:00:48]} Bd6 {[%emt 0:00:25]} 38. Qf3 {[%emt 0:00:56]} Qc7 {[%emt 0:00:32]} 39. c4 {[%emt 0:01:14]} c5 {[%emt 0:00:43]} 40. d5 {[%emt 0:00:24]} exd5 {[%emt 0:01:02]} 41. Qxd5 {[%emt 0:50:12]} Nb6 {[%emt 0:50:30]} 42. Qf5 {[%emt 0:00:00]} Nxc4 {[%emt 0:00:00]} 43. Rge1 {[%emt 0:00:00]} Nb6 {[%emt 0:00:00]} 44. Re4 {[%emt 0:00:00]} Rfe8 {[%emt 0:00:00]} 45. Rde1 {[%emt 0:00:00]} Rxe4 {[%emt 0:00:00]} 46. Rxe4 {[%emt 0:00:00]} c4 {[%emt 0:00:00]} 47. Nxf4 {[%emt 0:00:00]} c3 {[%emt 0:00:00]} 48. b3 {[%emt 0:00:00]} a6 {[%emt 0:00:00]} 49. Nd5 {[%emt 0:00:00]} Nxd5 {[%emt 0:00:00]} 50. Qxd5 {[%emt 0:00:00]} Rd8 {[%emt 0:00:00]} 51. Rc4 {[%emt 0:00:00]} Qb6 {[%emt 0:00:00]} 52. Qf5 {[%emt 0:00:00]} Bxh2 {[%emt 0:00:00]} 53. Rxc3 {[%emt 0:00:44]} Rd2 {[%emt 0:00:00]} 54. Qxf7 {[%emt 0:00:37]} Qxf2 {[%emt 0:00:34]} 55. Qxf2 {[%emt 0:00:54]} 1/2-1/2

[Event "4NCL Div 1 2024-25"]
[Site "England"]
[Date "2024.11.23"]
[Round "1.30"]
[White "Eggleston, David J"]
[Black "Mirzoeva, Elmira"]
[Result "1-0"]
[ECO "B12"]
[WhiteElo "2339"]
[BlackElo "2258"]
[Annotator "RC"]
[PlyCount "75"]
[EventDate "2024.11.23"]
[EventType "team-tourn"]
[EventCountry "ENG"]
[SourceTitle "playchess.com"]
[Source "ChessBase"]
[SourceQuality "1"]
[TimeControl "40/6000+30:3000+30"]

1. e4 {[%emt 0:10:01]} c6 {[%emt 0:13:03]} 2. d4 {[%emt 0:00:15]} d5 {[%emt 0:00:08]} 3. e5 {[%emt 0:00:25]} Bf5 {[%emt 0:00:21]} 4. h4 {[%emt 0:00:11]} h5 {[%emt 0:00:36]} 5. c4 {[%emt 0:00:07]} e6 {[%emt 0:00:34]} 6. Nc3 {[%emt 0:00:05]} Ne7 {[%emt 0:01:14]} 7. Nge2 {[%emt 0:00:11]} Nd7 {[%emt 0:01:23]} 8. Ng3 {[%emt 0:00:09]} Bg6 {[%emt 0:00:30]} 9. Bg5 {[%emt 0:00:13]} Qb6 {[%emt 0:02:01]} 10. Rc1 {[%emt 0:00:13]} f6 {[%emt 0:01:21]} 11. exf6 {[%emt 0:00:20]} gxf6 {[%emt 0:00:19]} 12. Be3 {[%emt 0:00:08]} O-O-O {[%emt 0:00:32]} 13. cxd5 {[%emt 0:05:33]} Nxd5 {[%emt 0:00:41]} 14. Nxd5 {[%emt 0:00:10]} exd5 {[%emt 0:00:07]} 15. Bd3 {[%emt 0:00:13]} Bb4+ {[%emt 0:21:21]} 16. Kf1 {[%emt 0:01:01]} Bxd3+ {[%emt 0:02:46]} 17. Qxd3 {[%emt 0:00:07]} Kb8 {[%emt 0:02:05]} 18. Rh3 {[%emt 0:08:58]} Nf8 {[%emt 0:13:34]} 19. Qf5 {[%emt 0:06:20]} Be7 {[%emt 0:04:24]} 20. Nxh5 {[%emt 0:03:17]} Qxb2 {[%emt 0:02:12]} 21. Nxf6 {[%emt 0:03:25]} Ka8 {[%emt 0:06:59]} 22. h5 {[%emt 0:14:17]} Bxf6 {[%emt 0:07:01]} 23. Qxf6 {[%emt 0:00:22]} Nd7 {[%emt 0:00:04]} 24. Qh4 {[%emt 0:01:02]} Rde8 {[%emt 0:03:47]} 25. Re1 {[%emt 0:05:13]} Qxa2 {[%emt 0:00:26]} 26. h6 {[%emt 0:51:14]} a5 {[%emt 0:03:38]} 27. Kg1 {[%emt 0:00:00]} Qc2 {[%emt 0:10:45]} 28. Rc1 {[%emt 0:00:00]} Qb2 {[%emt 0:02:10]} 29. Rf1 {[%emt 0:00:00]} a4 {[%emt 0:03:07]} 30. Qg3 {[%emt 0:00:00]} Rh7 {[%emt 0:04:47]} 31. Qg6 {[%emt 0:00:00]} Reh8 {[%emt 0:00:18]} 32. Rf3 {[%emt 0:00:00]} Qb4 {[%emt 0:01:59]} 33. Rb1 {[%emt 0:00:00]} Qe7 {[%emt 0:00:07]} 34. Qc2 {[%emt 0:00:00]} Rf7 {[%emt 0:02:25]} 35. Qxa4+ {[%emt 0:00:00]} Kb8 {[%emt 0:00:01]} 36. Rxf7 {[%emt 0:00:00]} Qxf7 {[%emt 0:00:05]} 37. Qxc6 {[%emt 0:00:00]} b6 {[%emt 0:00:49]} 38. Ra1 {[%emt 0:00:00]} 1-0